[Event "Late-Titled-Tuesday-Blitz-September-05-2023"]
[Site "Chess.com"]
[Date "2023.09.05"]
[Round "2"]
[White "TheMagician"]
[Black "CrushingKings"]
[Result "0-1"]
[WhiteElo "2074"]
[BlackElo "2528"]
[TimeControl "180+1"]
[EndTime "14:18:27 PDT"]
[Termination "CrushingKings won by checkmate"]

1. d4 {[%clk 0:03:00.9]} 1... g6 {[%clk 0:03:00.9]} 2. Nf3 {[%clk 0:02:58.3]}
2... Bg7 {[%clk 0:03:01.1]} 3. c3 {[%clk 0:02:58.2]} 3... Nf6 {[%clk 0:03:00.9]}
4. Bf4 {[%clk 0:02:58.2]} 4... O-O {[%clk 0:03:00.9]} 5. h3 {[%clk 0:02:58.5]}
5... b6 {[%clk 0:03:00.7]} 6. Nbd2 {[%clk 0:02:57.4]} 6... Bb7 {[%clk
0:03:01.3]} 7. e3 {[%clk 0:02:57.7]} 7... d6 {[%clk 0:02:59.6]} 8. Be2 {[%clk
0:02:57.6]} 8... Nbd7 {[%clk 0:02:59.7]} 9. O-O {[%clk 0:02:57.6]} 9... Ne4
{[%clk 0:03:00.3]} 10. Nxe4 {[%clk 0:02:56.8]} 10... Bxe4 {[%clk 0:03:01.2]} 11.
Nd2 {[%clk 0:02:56.7]} 11... Bb7 {[%clk 0:03:01.9]} 12. Bf3 {[%clk 0:02:57.3]}
12... Qc8 {[%clk 0:03:02.6]} 13. Bxb7 {[%clk 0:02:56.3]} 13... Qxb7 {[%clk
0:03:03.4]} 14. Qf3 {[%clk 0:02:56.1]} 14... Qxf3 {[%clk 0:03:04.1]} 15. Nxf3
{[%clk 0:02:56.1]} 15... c5 {[%clk 0:03:04.4]} 16. a4 {[%clk 0:02:48]} 16... a6
{[%clk 0:03:03.4]} 17. Rfc1 {[%clk 0:02:42.8]} 17... Rfb8 {[%clk 0:03:03]} 18.
Bg5 {[%clk 0:02:42.2]} 18... Kf8 {[%clk 0:03:02.7]} 19. Bh4 {[%clk 0:02:41.1]}
19... h6 {[%clk 0:02:54.7]} 20. Nd2 {[%clk 0:02:40.3]} 20... b5 {[%clk
0:02:54.1]} 21. axb5 {[%clk 0:02:32.8]} 21... axb5 {[%clk 0:02:55]} 22. Ne4
{[%clk 0:02:30.7]} 22... f5 {[%clk 0:02:50.7]} 23. Nd2 {[%clk 0:02:28.5]} 23...
Rxa1 {[%clk 0:02:46.5]} 24. Rxa1 {[%clk 0:02:27.5]} 24... b4 {[%clk 0:02:47.3]}
25. Ra7 {[%clk 0:02:20.8]} 25... Ke8 {[%clk 0:02:47.7]} 26. dxc5 {[%clk
0:02:17.2]} 26... g5 {[%clk 0:01:49.3]} 27. c6 {[%clk 0:02:05.9]} 27... Ne5
{[%clk 0:01:47.3]} 28. c7 {[%clk 0:02:04.9]} 28... Rc8 {[%clk 0:01:47.3]} 29.
Bg3 {[%clk 0:02:04.3]} 29... Nc6 {[%clk 0:01:47.4]} 30. Rb7 {[%clk 0:01:51.3]}
30... bxc3 {[%clk 0:01:07.3]} 31. bxc3 {[%clk 0:01:51.1]} 31... Bxc3 {[%clk
0:01:08]} 32. Nc4 {[%clk 0:01:51.8]} 32... Na5 {[%clk 0:01:08.6]} 33. Nxa5
{[%clk 0:01:28.4]} 33... Bxa5 {[%clk 0:01:07.8]} 34. Rb5 {[%clk 0:01:28.5]}
34... Bxc7 {[%clk 0:01:05.1]} 35. Rxf5 {[%clk 0:01:28.5]} 35... Rb8 {[%clk
0:00:54.2]} 36. h4 {[%clk 0:01:26.6]} 36... gxh4 {[%clk 0:00:33]} 37. Bxh4
{[%clk 0:01:25.8]} 37... Rb4 {[%clk 0:00:31.6]} 38. Rh5 {[%clk 0:01:24.9]} 38...
Kf7 {[%clk 0:00:04.9]} 39. Rxh6 {[%clk 0:01:16.5]} 39... Kg7 {[%clk 0:00:05.3]}
40. Bg5 {[%clk 0:01:12.5]} 40... d5 {[%clk 0:00:03.3]} 41. f4 {[%clk 0:01:12.7]}
41... Rb2 {[%clk 0:00:03.1]} 42. Rc6 {[%clk 0:01:10.4]} 42... Bb6 {[%clk
0:00:03.2]} 43. f5 {[%clk 0:01:08.9]} 43... d4 {[%clk 0:00:03.7]} 44. exd4
{[%clk 0:01:07.4]} 44... Bxd4+ {[%clk 0:00:04.6]} 45. Kh2 {[%clk 0:01:07.4]}
45... Bf6 {[%clk 0:00:05]} 46. Bxf6+ {[%clk 0:01:07.1]} 46... exf6 {[%clk
0:00:05.9]} 47. Kh3 {[%clk 0:01:07.1]} 47... Rb4 {[%clk 0:00:06]} 48. g4 {[%clk
0:01:07.1]} 48... Rb1 {[%clk 0:00:06.2]} 49. Rc7+ {[%clk 0:01:06.6]} 49... Kh6
{[%clk 0:00:06.1]} 50. Rf7 {[%clk 0:01:07.1]} 50... Kg5 {[%clk 0:00:06.4]} 51.
Rg7+ {[%clk 0:01:07.3]} 51... Kf4 {[%clk 0:00:06.8]} 52. Rg6 {[%clk 0:01:07.6]}
52... Rh1+ {[%clk 0:00:06.4]} 53. Kg2 {[%clk 0:01:07.9]} 53... Rh4 {[%clk
0:00:06.8]} 54. Rxf6 {[%clk 0:01:07]} 54... Rxg4+ {[%clk 0:00:07.4]} 55. Kf2
{[%clk 0:01:07.5]} 55... Rg5 {[%clk 0:00:07.7]} 56. Ra6 {[%clk 0:01:06.6]} 56...
Rxf5 {[%clk 0:00:07.9]} 57. Ra4+ {[%clk 0:01:06]} 57... Ke5+ {[%clk 0:00:08.5]}
58. Ke3 {[%clk 0:01:06.6]} 58... Kd6 {[%clk 0:00:09.3]} 59. Ra6+ {[%clk
0:01:06.3]} 59... Kc7 {[%clk 0:00:09.9]} 60. Ke4 {[%clk 0:01:06.9]} 60... Rh5
{[%clk 0:00:09.4]} 61. Rh6 {[%clk 0:01:07.8]} 61... Rxh6 {[%clk 0:00:09.1]} 62.
Kd5 {[%clk 0:01:07.7]} 62... Rc6 {[%clk 0:00:10]} 63. Ke5 {[%clk 0:01:08.6]}
63... Kd7 {[%clk 0:00:10.5]} 64. Kd5 {[%clk 0:01:09.4]} 64... Ra6 {[%clk
0:00:10.7]} 65. Ke5 {[%clk 0:01:10.3]} 65... Ra5+ {[%clk 0:00:11]} 66. Kd4
{[%clk 0:01:10.3]} 66... Kd6 {[%clk 0:00:11.3]} 67. Kc4 {[%clk 0:01:11.2]} 67...
Rh5 {[%clk 0:00:11.1]} 68. Kb4 {[%clk 0:01:12.1]} 68... Kc6 {[%clk 0:00:11.4]}
69. Kc4 {[%clk 0:01:13]} 69... Rh4+ {[%clk 0:00:11.5]} 70. Kd3 {[%clk
0:01:12.9]} 70... Kc5 {[%clk 0:00:12]} 71. Ke3 {[%clk 0:01:13.8]} 71... Kd5
{[%clk 0:00:12.5]} 72. Kf3 {[%clk 0:01:14.7]} 72... Rb4 {[%clk 0:00:13]} 73. Kg3
{[%clk 0:01:15.6]} 73... Ke5 {[%clk 0:00:12.8]} 74. Kf3 {[%clk 0:01:16.5]} 74...
Ra4 {[%clk 0:00:13.3]} 75. Ke3 {[%clk 0:01:17.4]} 75... Ra3+ {[%clk 0:00:13.7]}
76. Kd2 {[%clk 0:01:17.4]} 76... Ke4 {[%clk 0:00:14.2]} 77. Kc2 {[%clk
0:01:18.3]} 77... Rh3 {[%clk 0:00:14.4]} 78. Kb2 {[%clk 0:01:17.1]} 78... Kd4
{[%clk 0:00:14.4]} 79. Kc1 {[%clk 0:01:17.8]} 79... Rh2 {[%clk 0:00:12.5]} 80.
Kd1 {[%clk 0:01:16.8]} 80... Ke3 {[%clk 0:00:12.7]} 81. Ke1 {[%clk 0:01:17.7]}
81... Rh1# {[%clk 0:00:12.7]} 0-1

[Event "Late-Titled-Tuesday-Blitz-September-05-2023"]
[Site "Chess.com"]
[Date "2023.09.05"]
[Round "2"]
[White "SchmakAttack"]
[Black "BigAl"]
[Result "1-0"]
[WhiteElo "2779"]
[BlackElo "2522"]
[TimeControl "180+1"]
[EndTime "14:18:38 PDT"]
[Termination "SchmakAttack won by checkmate"]

1. Nf3 {[%clk 0:02:58.9]} 1... Nf6 {[%clk 0:02:59.3]} 2. g3 {[%clk 0:02:59]}
2... g6 {[%clk 0:02:59.9]} 3. Bg2 {[%clk 0:02:59.5]} 3... Bg7 {[%clk 0:03:00.7]}
4. O-O {[%clk 0:02:59.7]} 4... O-O {[%clk 0:03:01.6]} 5. b3 {[%clk 0:02:58.1]}
5... d6 {[%clk 0:03:02.5]} 6. Bb2 {[%clk 0:02:58.3]} 6... e5 {[%clk 0:03:02.8]}
7. d3 {[%clk 0:02:58.1]} 7... a5 {[%clk 0:03:01.6]} 8. c4 {[%clk 0:02:54.8]}
8... Nc6 {[%clk 0:02:59.8]} 9. Nc3 {[%clk 0:02:53.6]} 9... Re8 {[%clk
0:03:00.2]} 10. Nd2 {[%clk 0:02:45.9]} 10... h5 {[%clk 0:02:57.4]} 11. h3 {[%clk
0:02:30.4]} 11... Bd7 {[%clk 0:02:52.3]} 12. Rc1 {[%clk 0:02:27.8]} 12... Qc8
{[%clk 0:02:50.4]} 13. Kh2 {[%clk 0:02:27.6]} 13... Nh7 {[%clk 0:02:38.6]} 14.
Nd5 {[%clk 0:02:16.9]} 14... h4 {[%clk 0:02:14.1]} 15. g4 {[%clk 0:02:16.9]}
15... Qd8 {[%clk 0:02:10.7]} 16. e3 {[%clk 0:02:11]} 16... Nb4 {[%clk
0:02:06.9]} 17. Nxb4 {[%clk 0:01:54.6]} 17... axb4 {[%clk 0:02:06.8]} 18. Ra1
{[%clk 0:01:47.5]} 18... c6 {[%clk 0:02:03.6]} 19. a3 {[%clk 0:01:44.6]} 19...
bxa3 {[%clk 0:02:02.6]} 20. Rxa3 {[%clk 0:01:44.4]} 20... f5 {[%clk 0:01:56.3]}
21. gxf5 {[%clk 0:01:40.8]} 21... gxf5 {[%clk 0:01:56.2]} 22. Rg1 {[%clk
0:01:35.4]} 22... Rxa3 {[%clk 0:01:50.1]} 23. Bxa3 {[%clk 0:01:36.3]} 23... Qf6
{[%clk 0:01:50.3]} 24. Bb2 {[%clk 0:01:35]} 24... Kh8 {[%clk 0:01:47]} 25. Qh5
{[%clk 0:01:32.8]} 25... Qh6 {[%clk 0:01:24.1]} 26. Qxh6 {[%clk 0:01:29]} 26...
Bxh6 {[%clk 0:01:24.4]} 27. Nf3 {[%clk 0:01:29.1]} 27... Ra8 {[%clk 0:01:18]}
28. Nxh4 {[%clk 0:00:43.9]} 28... Ra2 {[%clk 0:01:17.6]} 29. Rb1 {[%clk
0:00:44.7]} 29... f4 {[%clk 0:01:03.2]} 30. e4 {[%clk 0:00:29.3]} 30... c5
{[%clk 0:00:54.3]} 31. Nf3 {[%clk 0:00:22.4]} 31... Nf8 {[%clk 0:00:48.4]} 32.
Kg1 {[%clk 0:00:22.5]} 32... Be8 {[%clk 0:00:45.4]} 33. Bc3 {[%clk 0:00:21.8]}
33... b5 {[%clk 0:00:36.2]} 34. Ra1 {[%clk 0:00:16.7]} 34... Rc2 {[%clk
0:00:34.7]} 35. Ba5 {[%clk 0:00:12.1]} 35... Rb2 {[%clk 0:00:28.4]} 36. Bc7
{[%clk 0:00:11.8]} 36... Rxb3 {[%clk 0:00:24.6]} 37. Bxd6 {[%clk 0:00:10.2]}
37... Bh5 {[%clk 0:00:19.5]} 38. Nxe5 {[%clk 0:00:09.2]} 38... f3 {[%clk
0:00:17.6]} 39. Bf1 {[%clk 0:00:09.1]} 39... Ne6 {[%clk 0:00:14]} 40. cxb5
{[%clk 0:00:08]} 40... Rxb5 {[%clk 0:00:13.8]} 41. d4 {[%clk 0:00:07.9]} 41...
Rb2 {[%clk 0:00:11.9]} 42. dxc5 {[%clk 0:00:07.8]} 42... Nd4 {[%clk 0:00:11.5]}
43. c6 {[%clk 0:00:06.2]} 43... Rc2 {[%clk 0:00:11.6]} 44. c7 {[%clk 0:00:05.6]}
44... Ne2+ {[%clk 0:00:12.5]} 45. Kh1 {[%clk 0:00:04.8]} 45... Kg7 {[%clk
0:00:12.5]} 46. Ra8 {[%clk 0:00:04.5]} 46... Rc1 {[%clk 0:00:12.4]} 47. Ng4
{[%clk 0:00:02.5]} 47... Rxf1+ {[%clk 0:00:11.7]} 48. Kh2 {[%clk 0:00:03.1]}
48... Bxg4 {[%clk 0:00:09]} 49. hxg4 {[%clk 0:00:04]} 49... Rxf2+ {[%clk
0:00:09.6]} 50. Kh3 {[%clk 0:00:02.6]} 50... Rf1 {[%clk 0:00:04.3]} 51. c8=Q
{[%clk 0:00:02]} 51... Rh1+ {[%clk 0:00:04.2]} 52. Bh2 {[%clk 0:00:02.4]} 52...
Nf4+ {[%clk 0:00:04.4]} 53. Kg3 {[%clk 0:00:03]} 53... Ne2+ {[%clk 0:00:04]} 54.
Kxf3 {[%clk 0:00:03]} 54... Rxh2 {[%clk 0:00:04.9]} 55. Qh8+ {[%clk 0:00:02.6]}
55... Kg6 {[%clk 0:00:05.4]} 56. Ra6+ {[%clk 0:00:03]} 56... Kg5 {[%clk
0:00:05.4]} 57. Qf6# {[%clk 0:00:03.6]} 1-0

[Event "Late-Titled-Tuesday-Blitz-September-05-2023"]
[Site "Chess.com"]
[Date "2023.09.05"]
[Round "2"]
[White "artin10862"]
[Black "tteshan"]
[Result "1-0"]
[WhiteElo "2949"]
[BlackElo "2571"]
[TimeControl "180+1"]
[EndTime "14:18:41 PDT"]
[Termination "artin10862 won by resignation"]

1. e4 {[%clk 0:03:00.9]} 1... c5 {[%clk 0:02:59.8]} 2. Nf3 {[%clk 0:02:59.9]}
2... Nc6 {[%clk 0:03:00.5]} 3. Bb5 {[%clk 0:02:58.4]} 3... e6 {[%clk 0:03:00]}
4. O-O {[%clk 0:02:51.5]} 4... Nge7 {[%clk 0:03:00.1]} 5. Re1 {[%clk 0:02:51.7]}
5... a6 {[%clk 0:03:00.3]} 6. Bf1 {[%clk 0:02:51.9]} 6... d5 {[%clk 0:03:00.8]}
7. d3 {[%clk 0:02:51.4]} 7... dxe4 {[%clk 0:02:59.1]} 8. dxe4 {[%clk 0:02:50.7]}
8... Qxd1 {[%clk 0:02:56.4]} 9. Rxd1 {[%clk 0:02:51.6]} 9... Ng6 {[%clk
0:02:54]} 10. Na3 {[%clk 0:02:38.1]} 10... Be7 {[%clk 0:02:35.2]} 11. Nc4 {[%clk
0:02:37.9]} 11... O-O {[%clk 0:02:26.3]} 12. a4 {[%clk 0:02:26.9]} 12... Rd8
{[%clk 0:02:16]} 13. Be3 {[%clk 0:02:20.2]} 13... Nf8 {[%clk 0:01:56.1]} 14. Nb6
{[%clk 0:02:10]} 14... Rb8 {[%clk 0:01:21.3]} 15. Bf4 {[%clk 0:02:08.3]} 15...
e5 {[%clk 0:01:19.5]} 16. Nxe5 {[%clk 0:02:01.5]} 16... Rxd1 {[%clk 0:00:35.6]}
17. Rxd1 {[%clk 0:02:02.4]} 17... Nxe5 {[%clk 0:00:35.4]} 18. Bxe5 {[%clk
0:02:02.2]} 18... Bg4 {[%clk 0:00:36]} 19. f3 {[%clk 0:01:34.5]} 19... Rd8
{[%clk 0:00:35.8]} 20. Rxd8 {[%clk 0:01:32]} 20... Bxd8 {[%clk 0:00:35.6]} 21.
Nd5 {[%clk 0:01:28.8]} 21... Be6 {[%clk 0:00:33.2]} 22. Bc3 {[%clk 0:01:23.6]}
22... Bd7 {[%clk 0:00:25.6]} 23. a5 {[%clk 0:01:22.2]} 23... Ne6 {[%clk
0:00:25.8]} 24. Nb6 {[%clk 0:01:19.4]} 24... Bc6 {[%clk 0:00:25.4]} 25. Bc4
{[%clk 0:01:18.6]} 25... Kf8 {[%clk 0:00:24.7]} 26. Bd5 {[%clk 0:01:18.3]} 26...
Bxd5 {[%clk 0:00:22.7]} 27. exd5 {[%clk 0:01:18.2]} 27... Nf4 {[%clk 0:00:21.7]}
28. Nd7+ {[%clk 0:01:04.3]} 28... Ke7 {[%clk 0:00:18.6]} 29. Nxc5 {[%clk
0:01:03.6]} 29... Ne2+ {[%clk 0:00:14.9]} 30. Kf1 {[%clk 0:00:55.8]} 30... Nxc3
{[%clk 0:00:15.8]} 31. bxc3 {[%clk 0:00:56.5]} 31... Bxa5 {[%clk 0:00:16.5]} 32.
c4 {[%clk 0:00:48]} 32... Bb4 {[%clk 0:00:14.6]} 33. Nd3 {[%clk 0:00:40.1]}
33... Bc3 {[%clk 0:00:12.9]} 34. Ke2 {[%clk 0:00:37.9]} 34... Kd6 {[%clk
0:00:13]} 35. Nc1 {[%clk 0:00:36]} 35... b5 {[%clk 0:00:13]} 36. Kd3 {[%clk
0:00:35.4]} 36... Bb2 {[%clk 0:00:12.2]} 37. Nb3 {[%clk 0:00:34.9]} 37... Be5
{[%clk 0:00:09.5]} 38. g3 {[%clk 0:00:28.7]} 38... f5 {[%clk 0:00:10.1]} 39. Nd4
{[%clk 0:00:25.9]} 39... bxc4+ {[%clk 0:00:08.6]} 40. Kxc4 {[%clk 0:00:25.8]}
40... g6 {[%clk 0:00:08.9]} 41. Nb3 {[%clk 0:00:23.3]} 41... Bg7 {[%clk
0:00:07.9]} 42. Nc5 {[%clk 0:00:22.4]} 42... Bb2 {[%clk 0:00:06.6]} 43. Nxa6
{[%clk 0:00:20.8]} 43... Bf6 {[%clk 0:00:06.8]} 44. Nc5 {[%clk 0:00:20.5]} 44...
h5 {[%clk 0:00:07]} 45. Nb3 {[%clk 0:00:18.8]} 45... h4 {[%clk 0:00:06.9]} 46.
Nd4 {[%clk 0:00:17.2]} 46... hxg3 {[%clk 0:00:06.8]} 47. hxg3 {[%clk 0:00:18.1]}
47... Be5 {[%clk 0:00:06.4]} 48. f4 {[%clk 0:00:18]} 48... Bg7 {[%clk
0:00:06.4]} 49. Nb5+ {[%clk 0:00:18.6]} 49... Kd7 {[%clk 0:00:06.5]} 50. Kd3
{[%clk 0:00:19.2]} 50... Bf6 {[%clk 0:00:05.9]} 51. c4 {[%clk 0:00:19.2]} 51...
Bd8 {[%clk 0:00:04.9]} 52. c5 {[%clk 0:00:19]} 52... Ba5 {[%clk 0:00:04.4]} 53.
c6+ {[%clk 0:00:17.9]} 53... Kc8 {[%clk 0:00:04.3]} 54. d6 {[%clk 0:00:18.3]}
54... Be1 {[%clk 0:00:04.3]} 55. Na7+ {[%clk 0:00:17.9]} 55... Kb8 {[%clk
0:00:03.7]} 56. c7+ {[%clk 0:00:18.8]} 56... Kxa7 {[%clk 0:00:04]} 57. c8=Q
{[%clk 0:00:19.7]} 1-0

[Event "Late-Titled-Tuesday-Blitz-September-05-2023"]
[Site "Chess.com"]
[Date "2023.09.05"]
[Round "2"]
[White "grzechu96"]
[Black "sterpfi"]
[Result "1-0"]
[WhiteElo "2635"]
[BlackElo "2154"]
[TimeControl "180+1"]
[EndTime "14:18:44 PDT"]
[Termination "grzechu96 won by resignation"]

1. e4 {[%clk 0:03:00.1]} 1... c6 {[%clk 0:02:59.9]} 2. d4 {[%clk 0:02:58.3]}
2... d5 {[%clk 0:03:00.8]} 3. Nc3 {[%clk 0:02:51.3]} 3... dxe4 {[%clk
0:03:01.1]} 4. Nxe4 {[%clk 0:02:51.7]} 4... Nf6 {[%clk 0:03:01.7]} 5. Nxf6+
{[%clk 0:02:51.7]} 5... exf6 {[%clk 0:03:02.6]} 6. c3 {[%clk 0:02:47.8]} 6...
Bd6 {[%clk 0:03:02.4]} 7. Bd3 {[%clk 0:02:46.8]} 7... O-O {[%clk 0:03:01.9]} 8.
Ne2 {[%clk 0:02:36.2]} 8... Re8 {[%clk 0:03:01.4]} 9. O-O {[%clk 0:02:35.8]}
9... Nd7 {[%clk 0:02:58.8]} 10. Ng3 {[%clk 0:02:05.7]} 10... g6 {[%clk
0:02:44.9]} 11. Bd2 {[%clk 0:01:28.9]} 11... f5 {[%clk 0:02:29.6]} 12. Qf3
{[%clk 0:01:09.4]} 12... Nf6 {[%clk 0:02:23.6]} 13. Bg5 {[%clk 0:00:57.6]} 13...
Bf8 {[%clk 0:02:17.5]} 14. Rfe1 {[%clk 0:00:52.2]} 14... Rxe1+ {[%clk
0:02:10.5]} 15. Rxe1 {[%clk 0:00:53.1]} 15... Bg7 {[%clk 0:02:10.5]} 16. Bc4
{[%clk 0:00:50.6]} 16... Qd6 {[%clk 0:02:00.8]} 17. Bf4 {[%clk 0:00:42.7]} 17...
Qf8 {[%clk 0:01:50.4]} 18. a4 {[%clk 0:00:39.5]} 18... Bd7 {[%clk 0:01:50]} 19.
a5 {[%clk 0:00:39.5]} 19... a6 {[%clk 0:01:47.5]} 20. Qd1 {[%clk 0:00:28.8]}
20... Re8 {[%clk 0:01:46]} 21. Be5 {[%clk 0:00:21.9]} 21... Ng4 {[%clk
0:01:30.5]} 22. Bxg7 {[%clk 0:00:20.8]} 22... Kxg7 {[%clk 0:01:29.7]} 23. h3
{[%clk 0:00:19.4]} 23... Nf6 {[%clk 0:01:28.9]} 24. Nf1 {[%clk 0:00:16.7]} 24...
Rxe1 {[%clk 0:01:25.6]} 25. Qxe1 {[%clk 0:00:17.6]} 25... Qd6 {[%clk 0:01:07.6]}
26. Nd2 {[%clk 0:00:09.9]} 26... Be6 {[%clk 0:01:07.3]} 27. Bxe6 {[%clk
0:00:05.5]} 27... fxe6 {[%clk 0:01:03.9]} 28. Nb3 {[%clk 0:00:04.5]} 28... Nd7
{[%clk 0:00:54]} 29. Qe2 {[%clk 0:00:03.8]} 29... Qd5 {[%clk 0:00:54]} 30. c4
{[%clk 0:00:04.3]} 30... Qd6 {[%clk 0:00:49]} 31. Qe1 {[%clk 0:00:04.4]} 31...
Kf7 {[%clk 0:00:46.8]} 32. Qc3 {[%clk 0:00:04.1]} 32... Nf6 {[%clk 0:00:45.4]}
33. Nc5 {[%clk 0:00:03.8]} 33... Qc7 {[%clk 0:00:29.2]} 34. Qe3 {[%clk
0:00:03.9]} 34... Ne4 {[%clk 0:00:23.7]} 35. Nxe4 {[%clk 0:00:04.1]} 35... fxe4
{[%clk 0:00:24.6]} 36. Qxe4 {[%clk 0:00:04.8]} 36... Qxa5 {[%clk 0:00:24.9]} 37.
Qf4+ {[%clk 0:00:04.6]} 37... Ke7 {[%clk 0:00:22.4]} 38. c5 {[%clk 0:00:04.9]}
38... Kd7 {[%clk 0:00:17.2]} 39. Qd6+ {[%clk 0:00:04.8]} 39... Kc8 {[%clk
0:00:16.1]} 40. Qxe6+ {[%clk 0:00:05.1]} 40... Kc7 {[%clk 0:00:16.5]} 41. Qe5+
{[%clk 0:00:04.7]} 41... Kc8 {[%clk 0:00:16.5]} 42. Kh2 {[%clk 0:00:04.9]} 42...
Qd2 {[%clk 0:00:14]} 43. Qh8+ {[%clk 0:00:03.8]} 43... Kd7 {[%clk 0:00:13.3]}
44. Qxh7+ {[%clk 0:00:04.4]} 44... Ke6 {[%clk 0:00:13.3]} 45. Qxg6+ {[%clk
0:00:04.7]} 45... Kd5 {[%clk 0:00:13.5]} 46. Qf7+ {[%clk 0:00:04.6]} 46... Ke4
{[%clk 0:00:12]} 47. Qe6+ {[%clk 0:00:04.8]} 47... Kd3 {[%clk 0:00:11.9]} 48.
Qe5 {[%clk 0:00:04.8]} 48... Qxb2 {[%clk 0:00:08.2]} 49. Qf5+ {[%clk 0:00:04.6]}
49... Kc4 {[%clk 0:00:08.3]} 50. Qe6+ {[%clk 0:00:04.3]} 50... Kb5 {[%clk
0:00:07.5]} 51. d5 {[%clk 0:00:04]} 51... cxd5 {[%clk 0:00:06.6]} 52. Qxd5
{[%clk 0:00:03.6]} 52... a5 {[%clk 0:00:06.7]} 53. Qxb7+ {[%clk 0:00:03.8]}
53... Kxc5 {[%clk 0:00:06.7]} 54. Qxb2 {[%clk 0:00:04.7]} 54... a4 {[%clk
0:00:06.9]} 55. Qa1 {[%clk 0:00:05.1]} 1-0

[Event "Late-Titled-Tuesday-Blitz-September-05-2023"]
[Site "Chess.com"]
[Date "2023.09.05"]
[Round "2"]
[White "tptagain"]
[Black "Alexei_Gubajdullin"]
[Result "1/2-1/2"]
[WhiteElo "2982"]
[BlackElo "2588"]
[TimeControl "180+1"]
[EndTime "14:18:45 PDT"]
[Termination "Game drawn by repetition"]

1. Nf3 {[%clk 0:03:00.9]} 1... Nf6 {[%clk 0:02:59.9]} 2. b3 {[%clk 0:03:01.3]}
2... g6 {[%clk 0:02:59.8]} 3. Bb2 {[%clk 0:03:01.8]} 3... Bg7 {[%clk 0:03:00.3]}
4. g3 {[%clk 0:03:02.5]} 4... O-O {[%clk 0:03:00.6]} 5. Bg2 {[%clk 0:03:03]}
5... d6 {[%clk 0:03:01.1]} 6. d4 {[%clk 0:03:03.6]} 6... a5 {[%clk 0:02:59.5]}
7. O-O {[%clk 0:02:55.5]} 7... a4 {[%clk 0:02:59.4]} 8. c4 {[%clk 0:02:55.2]}
8... axb3 {[%clk 0:02:59]} 9. axb3 {[%clk 0:02:53]} 9... Rxa1 {[%clk 0:02:58.7]}
10. Bxa1 {[%clk 0:02:53.9]} 10... c6 {[%clk 0:02:58.8]} 11. Nc3 {[%clk 0:02:49]}
11... Na6 {[%clk 0:02:58.5]} 12. e4 {[%clk 0:02:46.5]} 12... Bg4 {[%clk
0:02:57.6]} 13. h3 {[%clk 0:02:20.8]} 13... Bxf3 {[%clk 0:02:56.9]} 14. Bxf3
{[%clk 0:02:21.7]} 14... Nd7 {[%clk 0:02:57.2]} 15. Na4 {[%clk 0:02:16.1]} 15...
c5 {[%clk 0:02:32.8]} 16. e5 {[%clk 0:02:06.7]} 16... cxd4 {[%clk 0:02:24.7]}
17. exd6 {[%clk 0:02:06.8]} 17... exd6 {[%clk 0:01:51.4]} 18. Bxd4 {[%clk
0:01:55]} 18... Ndc5 {[%clk 0:01:44.9]} 19. Nxc5 {[%clk 0:01:17.3]} 19... Nxc5
{[%clk 0:01:41.6]} 20. Bxg7 {[%clk 0:01:04.5]} 20... Kxg7 {[%clk 0:01:41]} 21.
b4 {[%clk 0:01:05.2]} 21... Ne6 {[%clk 0:01:40]} 22. Qd2 {[%clk 0:01:01.7]}
22... b6 {[%clk 0:01:25.1]} 23. h4 {[%clk 0:01:01.8]} 23... Qf6 {[%clk
0:01:23.7]} 24. Bd5 {[%clk 0:00:59.1]} 24... Nd4 {[%clk 0:01:18.2]} 25. Kg2
{[%clk 0:00:58.8]} 25... Re8 {[%clk 0:01:15.5]} 26. Rd1 {[%clk 0:00:56.6]} 26...
Nf5 {[%clk 0:01:11.6]} 27. Bf3 {[%clk 0:00:39.4]} 27... h5 {[%clk 0:01:11.1]}
28. Bd5 {[%clk 0:00:33.4]} 28... Re5 {[%clk 0:01:07.7]} 29. Bc6 {[%clk
0:00:32.7]} 29... Kh7 {[%clk 0:01:03.9]} 30. Bf3 {[%clk 0:00:32.4]} 30... Qe6
{[%clk 0:00:56.5]} 31. Qf4 {[%clk 0:00:31.6]} 31... Kg7 {[%clk 0:00:55.4]} 32.
Ra1 {[%clk 0:00:30.7]} 32... Re1 {[%clk 0:00:50.3]} 33. Rxe1 {[%clk 0:00:25.8]}
33... Qxe1 {[%clk 0:00:46.2]} 34. Be4 {[%clk 0:00:26.3]} 34... Qxb4 {[%clk
0:00:25.8]} 35. Bxf5 {[%clk 0:00:26.4]} 35... gxf5 {[%clk 0:00:24.5]} 36. Qg5+
{[%clk 0:00:26.6]} 36... Kf8 {[%clk 0:00:24.1]} 37. Qd8+ {[%clk 0:00:25.5]}
37... Kg7 {[%clk 0:00:23.8]} 38. Qg5+ {[%clk 0:00:25.5]} 38... Kf8 {[%clk
0:00:24]} 39. Qxh5 {[%clk 0:00:21.9]} 39... Qxc4 {[%clk 0:00:23.5]} 40. Qh6+
{[%clk 0:00:20.6]} 40... Ke7 {[%clk 0:00:23.1]} 41. Qg5+ {[%clk 0:00:20.5]}
41... Ke6 {[%clk 0:00:21.3]} 42. h5 {[%clk 0:00:19.7]} 42... Qe4+ {[%clk
0:00:21]} 43. Kg1 {[%clk 0:00:19]} 43... Qe1+ {[%clk 0:00:21]} 44. Kg2 {[%clk
0:00:19.3]} 44... Qe4+ {[%clk 0:00:20.5]} 45. Kh2 {[%clk 0:00:19.8]} 45... Qf3
{[%clk 0:00:20.7]} 46. Kg1 {[%clk 0:00:18.4]} 46... Qd1+ {[%clk 0:00:19.5]} 47.
Kg2 {[%clk 0:00:18.4]} 47... Qd5+ {[%clk 0:00:19.4]} 48. Kg1 {[%clk 0:00:17.1]}
48... Qd1+ {[%clk 0:00:19.3]} 49. Kg2 {[%clk 0:00:16.1]} 49... Qd5+ {[%clk
0:00:19.3]} 50. f3 {[%clk 0:00:13.2]} 50... Qa2+ {[%clk 0:00:17.3]} 51. Kh3
{[%clk 0:00:13.7]} 51... Qa1 {[%clk 0:00:17.4]} 52. Qe3+ {[%clk 0:00:13]} 52...
Kf6 {[%clk 0:00:16.6]} 53. Qh6+ {[%clk 0:00:13.1]} 53... Ke7 {[%clk 0:00:16.5]}
54. Qg5+ {[%clk 0:00:10.8]} 54... Ke6 {[%clk 0:00:16.6]} 55. Qe3+ {[%clk
0:00:10.7]} 55... Kf6 {[%clk 0:00:16.7]} 56. Qh6+ {[%clk 0:00:10.5]} 56... Ke7
{[%clk 0:00:16.6]} 57. Qg5+ {[%clk 0:00:10]} 57... Ke6 {[%clk 0:00:16.6]}
1/2-1/2